[Event "Guimaraes Open 2019"]
[Site "Guimaraes"]
[Date "2019.08.28"]
[Round "1.32"]
[White "Caeiro, Vitor Cristiano"]
[Black "Silva, Pedro Gil Ferreira D"]
[Result "0-1"]
[ECO "B10"]
[WhiteElo "1680"]
[BlackElo "1960"]
[Annotator "NA"]
[PlyCount "40"]
[EventDate "2019.08.28"]
[EventType "swiss"]
[EventCountry "POR"]
[SourceTitle "playchess.com"]
[Source "ChessBase"]
[SourceQuality "1"]
[TimeControl "5400+30"]

1. e4 {[%emt 0:00:00]} c6 {[%emt 0:00:00]} 2. Nf3 {[%emt 0:00:00]} d5 {[%emt 0:00:00]} 3. exd5 {[%emt 0:00:02]} cxd5 {[%emt 0:00:00]} 4. d4 {[%emt 0:00:09]} Nf6 {[%emt 0:00:04]} 5. c3 {[%emt 0:01:10]} g6 {[%emt 0:00:13]} 6. Qa4+ {[%emt 0:03:02]} Nbd7 {[%emt 0:02:20]} 7. Ne5 {[%emt 0:01:27]} Bg7 {[%emt 0:00:49]} 8. Nd2 {[%emt 0:08:00]} O-O {[%emt 0:01:10]} 9. Ndf3 {[%emt 0:02:45]} Ne4 {[%emt 0:07:49]} 10. Bd3 {[%emt 0:04:48]} Nec5 {[%emt 0:06:17]} 11. Qc2 {[%emt 0:01:04]} Nxd3+ {[%emt 0:00:15]} 12. Qxd3 {[%emt 0:00:34]} Nxe5 {[%emt 0:01:17]} 13. Nxe5 {[%emt 0:00:50]} f6 {[%emt 0:00:30]} 14. Nxg6 {[%emt 0:02:57]} hxg6 {[%emt 0:00:09]} 15. Qxg6 {[%emt 0:00:13]} Qe8 {[%emt 0:01:37]} 16. Qg3 {[%emt 0:00:18]} Qh5 {[%emt 0:05:35]} 17. f3 {[%emt 0:05:56]} Kf7 {[%emt 0:08:05]} 18. Qc7 {[%emt 0:06:53]} Qg6 $17 {[%emt 0:02:46]} 19. Kf2 {[%emt 0:03:33]} Qc2+ {[%emt 0:00:42]} 20. Kg1 {[%emt 0:17:54]} Qd1+ {[%emt 0:00:39]} 0-1

[Event "Guimaraes Open 2019"]
[Site "Guimaraes"]
[Date "2019.08.28"]
[Round "1.33"]
[White "Pipiras, Filipa Fortuna"]
[Black "Goncalves, Samuel Jesus P"]
[Result "1/2-1/2"]
[ECO "E43"]
[WhiteElo "1959"]
[BlackElo "1679"]
[Annotator "NA"]
[PlyCount "57"]
[EventDate "2019.08.28"]
[EventType "swiss"]
[EventCountry "POR"]
[SourceTitle "playchess.com"]
[Source "ChessBase"]
[SourceQuality "1"]
[TimeControl "5400+30"]

1. d4 {[%emt 0:00:07]} Nf6 {[%emt 0:00:00]} 2. c4 {[%emt 0:00:46]} e6 {[%emt 0:02:58]} 3. Nc3 {[%emt 0:01:06]} Bb4 {[%emt 0:00:24]} 4. e3 {[%emt 0:01:34]} b6 {[%emt 0:01:23]} 5. Nf3 {[%emt 0:04:55]} Bxc3+ {[%emt 0:01:53]} 6. bxc3 {[%emt 0:00:15]} d6 {[%emt 0:00:48]} 7. Bd3 {[%emt 0:01:34]} O-O {[%emt 0:00:19]} 8. O-O {[%emt 0:00:52]} Nc6 {[%emt 0:00:42]} 9. h3 {[%emt 0:10:29]} Ba6 {[%emt 0:01:25]} 10. Qe2 {[%emt 0:01:39]} Na5 {[%emt 0:08:10]} 11. e4 {[%emt 0:03:12]} Nd7 {[%emt 0:25:53]} 12. Bf4 {[%emt 0:15:21]} h6 {[%emt 0:31:52]} 13. Rfd1 {[%emt 0:16:26]} Qf6 {[%emt 0:00:54]} 14. e5 {[%emt 0:09:03]} dxe5 {[%emt 0:07:40]} 15. Qe4 {[%emt 0:06:33]} Qf5 {[%emt 0:04:25]} 16. Qxa8 {[%emt 0:02:47]} Rxa8 {[%emt 0:02:18]} 17. Bxf5 {[%emt 0:00:09]} exf4 {[%emt 0:00:36]} 18. Be4 {[%emt 0:00:13]} Rc8 {[%emt 0:02:09]} 19. Nd2 {[%emt 0:06:28]} Bxc4 {[%emt 0:01:06]} 20. Nxc4 {[%emt 0:04:03]} Nxc4 {[%emt 0:00:02]} 21. d5 {[%emt 0:04:35]} Nc5 {[%emt 0:02:15]} 22. Bf3 {[%emt 0:01:26]} e5 {[%emt 0:00:30]} 23. Be2 {[%emt 0:01:25]} Nd6 {[%emt 0:00:37]} 24. c4 {[%emt 0:01:15]} Rd8 {[%emt 0:00:42]} 25. Rac1 {[%emt 0:01:07]} Kf8 {[%emt 0:00:38]} 26. Bd3 {[%emt 0:00:37]} Rd7 {[%emt 0:00:27]} 27. Be2 {[%emt 0:02:10]} Rd8 {[%emt 0:00:12]} 28. Bd3 {[%emt 0:00:51]} Rd7 {[%emt 0:00:09]} 29. Be2 1/2-1/2

[Event "Guimaraes Open 2019"]
[Site "Guimaraes"]
[Date "2019.08.28"]
[Round "1.34"]
[White "Alves, Fernando Pereira Rib"]
[Black "Marques, Ricardo Taborda Trig"]
[Result "0-1"]
[ECO "B00"]
[WhiteElo "1678"]
[BlackElo "1958"]
[Annotator "NA"]
[PlyCount "78"]
[EventDate "2019.08.28"]
[EventType "swiss"]
[EventCountry "POR"]
[SourceTitle "playchess.com"]
[Source "ChessBase"]
[SourceQuality "1"]
[TimeControl "5400+30"]

1. e4 {[%emt 0:00:00]} d6 {[%emt 0:00:00]} 2. d4 {[%emt 0:00:00]} Nf6 {[%emt 0:00:00]} 3. Bc4 {[%emt 0:02:48]} Nxe4 {[%emt 0:06:47]} 4. Bxf7+ {[%emt 0:00:49]} Kxf7 {[%emt 0:00:10]} 5. Qh5+ {[%emt 0:00:18]} g6 {[%emt 0:01:30]} 6. Qd5+ {[%emt 0:00:08]} e6 {[%emt 0:00:14]} 7. Qxe4 {[%emt 0:00:19]} Bg7 {[%emt 0:01:15]} 8. Nf3 {[%emt 0:01:12]} Re8 {[%emt 0:04:55]} 9. O-O $11 {[%emt 0:07:03]} ({Reject} 9. Ng5+ Kg8 $15) 9... Qf6 {[%emt 0:01:55]} 10. Nc3 {[%emt 0:05:48]} Qf5 {[%emt 0:02:42]} 11. Qe2 {[%emt 0:00:46]} Bd7 {[%emt 0:04:29]} 12. Be3 {[%emt 0:10:25]} Bc6 {[%emt 0:05:12]} 13. Nh4 {[%emt 0:08:06]} Qf6 {[%emt 0:07:51]} 14. Qg4 {[%emt 0:03:48]} Nd7 {[%emt 0:02:04]} 15. Rad1 {[%emt 0:01:44]} Kg8 {[%emt 0:01:15]} 16. Bg5 {[%emt 0:13:14]} Qf7 {[%emt 0:02:29]} 17. Qe2 {[%emt 0:09:19]} h6 {[%emt 0:01:46]} 18. Be3 {[%emt 0:01:22]} g5 {[%emt 0:02:31]} 19. Nf3 {[%emt 0:01:50]} Bxf3 {[%emt 0:00:13]} 20. gxf3 {[%emt 0:00:28]} Rf8 {[%emt 0:01:33]} 21. Kg2 {[%emt 0:00:48]} c6 {[%emt 0:04:43]} 22. h4 {[%emt 0:05:32]} gxh4 {[%emt 0:00:34]} 23. Rh1 {[%emt 0:00:10]} Qg6+ {[%emt 0:01:36]} 24. Kf1 {[%emt 0:00:36]} Qh5 {[%emt 0:00:31]} 25. Rh3 {[%emt 0:05:10]} d5 {[%emt 0:00:43]} 26. Kg2 {[%emt 0:07:28]} e5 {[%emt 0:01:48]} 27. Rdh1 {[%emt 0:03:27]} Bf6 {[%emt 0:07:12]} 28. Qd3 {[%emt 0:01:54]} Kh8 {[%emt 0:01:09]} 29. Ne2 {[%emt 0:03:02]} Rg8+ {[%emt 0:00:24]} 30. Kf1 {[%emt 0:00:08]} Qg6 {[%emt 0:03:38]} 31. Qd2 {[%emt 0:01:59]} h5 {[%emt 0:01:20]} 32. f4 {[%emt 0:01:40]} e4 {[%emt 0:00:51]} 33. f5 {[%emt 0:04:01]} Qxf5 {[%emt 0:00:51]} 34. Nf4 {[%emt 0:00:33]} Rg4 {[%emt 0:02:01]} 35. c3 {[%emt 0:00:44]} Rag8 {[%emt 0:02:12]} 36. Qd1 {[%emt 0:00:32]} Bg5 {[%emt 0:02:47]} 37. Nxh5 {[%emt 0:00:46]} Bxe3 {[%emt 0:00:34]} 38. Rxe3 {[%emt 0:00:23]} Qxh5 {[%emt 0:00:19]} 39. Qe2 {[%emt 0:00:30]} Nf6 0-1

[Event "Guimaraes Open 2019"]
[Site "Guimaraes"]
[Date "2019.08.29"]
[Round "2.1"]
[White "Alonso Garcia, Aaron"]
[Black "Grigoryan, Karen H."]
[Result "0-1"]
[ECO "B89"]
[WhiteElo "2291"]
[BlackElo "2562"]
[Annotator "ChessBase"]
[PlyCount "66"]
[EventDate "2019.08.28"]
[EventType "swiss"]
[EventCountry "POR"]
[SourceTitle "playchess.com"]
[Source "ChessBase"]
[SourceQuality "1"]
[TimeControl "5400+30"]

1. e4 {[%emt 0:01:07]} c5 {[%emt 0:00:33]} 2. Nf3 {[%emt 0:01:31]} d6 {[%emt 0:00:07]} 3. d4 {[%emt 0:00:15]} cxd4 {[%emt 0:00:13]} 4. Nxd4 {[%emt 0:00:05]} Nf6 {[%emt 0:00:06]} 5. Nc3 {[%emt 0:00:30]} Nc6 {[%emt 0:00:40]} 6. Bc4 {[%emt 0:03:16]} e6 {[%emt 0:01:38]} 7. Be3 {[%emt 0:00:58]} Be7 {[%emt 0:00:14]} 8. Qe2 {[%emt 0:00:56]} a6 {[%emt 0:00:17]} 9. O-O-O {[%emt 0:09:47]} Qc7 {[%emt 0:00:23]} 10. Bb3 {[%emt 0:02:16]} O-O {[%emt 0:03:50]} 11. g4 {[%emt 0:06:31]} Nxd4 {[%emt 0:01:20]} 12. Rxd4 {[%emt 0:01:40]} b5 {[%emt 0:07:46]} 13. g5 {[%emt 0:12:40]} Nd7 {[%emt 0:00:08]} 14. f4 {[%emt 0:00:28]} Nc5 {[%emt 0:00:47]} 15. f5 {[%emt 0:18:56]} exf5 {[%emt 0:03:24]} 16. Nd5 {[%emt 0:02:02]} Qd8 {[%emt 0:01:01]} 17. exf5 {[%emt 0:00:56]} Bxf5 {[%emt 0:01:19]} 18. Rf1 {[%emt 0:11:42]} Be6 {[%emt 0:05:05]} 19. Qd2 {[%emt 0:00:44]} Re8 {[%emt 0:04:39]} 20. h4 {[%emt 0:02:00]} a5 {[%emt 0:01:27]} 21. c3 {[%emt 0:02:31]} Nxb3+ {[%emt 0:00:27]} 22. axb3 {[%emt 0:01:41]} a4 {[%emt 0:00:31]} 23. bxa4 {[%emt 0:08:59]} bxa4 {[%emt 0:01:51]} 24. Kb1 {[%emt 0:01:06]} Qc8 {[%emt 0:04:08]} 25. Rff4 {[%emt 0:04:37]} a3 {[%emt 0:01:12]} 26. b4 {[%emt 0:01:33]} a2+ {[%emt 0:00:53]} 27. Ka1 {[%emt 0:00:00]} Bxd5 {[%emt 0:02:48]} 28. Rxd5 {[%emt 0:00:01]} Ra3 {[%emt 0:00:11]} 29. Bd4 {[%emt 0:01:51]} Qc6 {[%emt 0:01:38]} 30. Rdf5 {[%emt 0:00:10]} Rb3 {[%emt 0:02:17]} 31. Rf1 {[%emt 0:02:23]} Ra8 {[%emt 0:00:43]} 32. Qf2 {[%emt 0:01:12]} Qe4 {[%emt 0:00:35]} 33. Ra5 {[%emt 0:01:31]} Qc6 0-1

[Event "Guimaraes Open 2019"]
[Site "Guimaraes"]
[Date "2019.08.29"]
[Round "2.2"]
[White "Martinez Duany, Lelys Stanley"]
[Black "Garcia Moreno, Carlos"]
[Result "1-0"]
[ECO "C85"]
[WhiteElo "2526"]
[BlackElo "2292"]
[Annotator "ChessBase"]
[PlyCount "83"]
[EventDate "2019.08.28"]
[EventType "swiss"]
[EventCountry "POR"]
[SourceTitle "playchess.com"]
[Source "ChessBase"]
[SourceQuality "1"]
[TimeControl "5400+30"]

1. e4 {[%emt 0:00:00]} e5 {[%emt 0:00:00]} 2. Nf3 {[%emt 0:00:11]} Nc6 {[%emt 0:00:06]} 3. Bb5 {[%emt 0:00:23]} a6 {[%emt 0:01:06]} 4. Ba4 {[%emt 0:00:09]} Nf6 {[%emt 0:00:22]} 5. O-O {[%emt 0:00:14]} Be7 {[%emt 0:00:36]} 6. Bxc6 {[%emt 0:01:15]} dxc6 {[%emt 0:00:18]} 7. d3 {[%emt 0:00:17]} Nd7 {[%emt 0:05:41]} 8. Nbd2 {[%emt 0:01:29]} O-O {[%emt 0:00:43]} 9. Nc4 {[%emt 0:00:06]} Bd6 {[%emt 0:05:47]} 10. d4 {[%emt 0:03:27]} f6 {[%emt 0:15:22]} 11. Qd3 {[%emt 0:13:28]} Qe7 {[%emt 0:16:26]} 12. Rd1 {[%emt 0:03:18]} exd4 {[%emt 0:06:23]} 13. Nxd6 {[%emt 0:01:58]} cxd6 {[%emt 0:04:59]} 14. Nxd4 {[%emt 0:02:20]} Nc5 {[%emt 0:02:13]} 15. Qc4+ {[%emt 0:00:11]} Qf7 {[%emt 0:00:51]} 16. Qxf7+ {[%emt 0:00:14]} Kxf7 {[%emt 0:00:15]} 17. f3 {[%emt 0:00:14]} Rd8 {[%emt 0:08:44]} 18. Be3 {[%emt 0:00:47]} Be6 {[%emt 0:01:31]} 19. b3 {[%emt 0:02:58]} h5 {[%emt 0:09:22]} 20. Rd2 {[%emt 0:02:44]} g6 {[%emt 0:05:07]} 21. Rad1 {[%emt 0:00:15]} Ke7 {[%emt 0:00:02]} 22. c4 {[%emt 0:05:34]} Bf7 {[%emt 0:01:15]} 23. Ne2 {[%emt 0:02:28]} b6 {[%emt 0:06:18]} 24. Nc3 {[%emt 0:00:15]} a5 {[%emt 0:00:42]} 25. Bf4 {[%emt 0:01:10]} Nb7 {[%emt 0:00:33]} 26. Na4 {[%emt 0:00:10]} b5 {[%emt 0:04:30]} 27. cxb5 {[%emt 0:01:03]} cxb5 {[%emt 0:00:01]} 28. Nb6 {[%emt 0:00:08]} Ra6 {[%emt 0:00:48]} 29. Be3 {[%emt 0:01:54]} Rb8 {[%emt 0:01:28]} 30. Kf2 {[%emt 0:04:23]} Be6 {[%emt 0:01:32]} 31. Nd5+ {[%emt 0:02:18]} Bxd5 {[%emt 0:00:20]} 32. Rxd5 {[%emt 0:00:06]} Nd8 {[%emt 0:00:31]} 33. Rc1 {[%emt 0:03:48]} Rc6 {[%emt 0:00:24]} 34. Bf4 {[%emt 0:02:55]} Rxc1 {[%emt 0:01:50]} 35. Bxd6+ {[%emt 0:00:08]} Ke6 {[%emt 0:00:27]} 36. Bxb8 {[%emt 0:00:08]} Rc2+ {[%emt 0:00:30]} 37. Ke1 {[%emt 0:01:25]} Nc6 {[%emt 0:00:13]} 38. Kd1 {[%emt 0:00:11]} Rc3 {[%emt 0:01:00]} 39. Bf4 {[%emt 0:01:04]} Nb4 {[%emt 0:00:20]} 40. Rxb5 {[%emt 0:01:12]} Nxa2 {[%emt 0:00:19]} 41. Bd2 {[%emt 0:00:49]} Rd3 {[%emt 0:00:35]} 42. Kc2 {[%emt 0:01:17] Kd5} 1-0

[Event "Guimaraes Open 2019"]
[Site "Guimaraes"]
[Date "2019.08.29"]
[Round "2.3"]
[White "Jimenez Martinez, Jose Vicente"]
[Black "Lizak, Peter"]
[Result "0-1"]
[ECO "A40"]
[WhiteElo "2264"]
[BlackElo "2448"]
[Annotator "NA"]
[PlyCount "60"]
[EventDate "2019.08.28"]
[EventType "swiss"]
[EventCountry "POR"]
[SourceTitle "playchess.com"]
[Source "ChessBase"]
[SourceQuality "1"]
[TimeControl "5400+30"]

1. d4 {[%emt 0:00:00]} e6 {[%emt 0:00:00]} 2. c4 {[%emt 0:00:00]} b6 {[%emt 0:00:00]} 3. Nc3 {[%emt 0:00:32]} Bb7 {[%emt 0:00:00]} 4. e4 {[%emt 0:04:34]} Bb4 {[%emt 0:00:21]} 5. Bd3 {[%emt 0:00:33]} f5 {[%emt 0:03:04]} 6. f3 {[%emt 0:07:25]} Qh4+ {[%emt 0:16:02]} 7. g3 {[%emt 0:02:11]} Qh5 {[%emt 0:00:10]} 8. Bf4 {[%emt 0:02:42]} fxe4 {[%emt 0:02:29]} 9. fxe4 {[%emt 0:01:22]} Qxd1+ {[%emt 0:00:35]} 10. Kxd1 {[%emt 0:00:07]} Bxc3 {[%emt 0:01:10]} 11. bxc3 {[%emt 0:00:01]} Nf6 {[%emt 0:00:38]} 12. d5 {[%emt 0:01:08]} exd5 {[%emt 0:04:48]} 13. cxd5 {[%emt 0:04:03]} Nxd5 {[%emt 0:01:05]} 14. Be5 {[%emt 0:05:50]} Nf6 {[%emt 0:06:33]} 15. Bxc7 {[%emt 0:14:12]} Nxe4 {[%emt 0:01:36]} 16. Nh3 {[%emt 0:00:32]} O-O {[%emt 0:02:38]} 17. Re1 {[%emt 0:01:00]} d5 {[%emt 0:03:04]} 18. Nf4 {[%emt 0:09:19]} Nxc3+ {[%emt 0:04:28]} 19. Kc2 {[%emt 0:01:45]} Ne4 {[%emt 0:00:39]} 20. Nxd5 {[%emt 0:03:58]} Bxd5 {[%emt 0:01:17]} 21. Bxe4 {[%emt 0:00:02]} Rf2+ {[%emt 0:17:46]} 22. Kd1 {[%emt 0:03:49]} Bxe4 {[%emt 0:00:44]} 23. Rxe4 {[%emt 0:00:03]} Na6 {[%emt 0:00:35]} 24. Rc1 {[%emt 0:02:13]} Rc8 {[%emt 0:02:09]} 25. Bf4 {[%emt 0:00:18]} Rd8+ {[%emt 0:16:48]} 26. Ke1 {[%emt 0:00:57]} Rxh2 {[%emt 0:00:09]} 27. Rc6 {[%emt 0:02:49]} Nc5 {[%emt 0:00:37]} 28. Re7 {[%emt 0:00:28]} Nd3+ {[%emt 0:00:10]} 29. Kf1 {[%emt 0:06:43]} Nxf4 {[%emt 0:00:11]} 30. Kg1 {[%emt 0:00:46]} Rxa2 {[%emt 0:01:18]} 0-1

[Event "Guimaraes Open 2019"]
[Site "Guimaraes"]
[Date "2019.08.29"]
[Round "2.4"]
[White "Campora, Daniel H."]
[Black "Lopez Gonzalez, Alfonso"]
[Result "1/2-1/2"]
[ECO "C01"]
[WhiteElo "2426"]
[BlackElo "2219"]
[Annotator "NA"]
[PlyCount "99"]
[EventDate "2019.08.28"]
[EventType "swiss"]
[EventCountry "POR"]
[SourceTitle "playchess.com"]
[Source "ChessBase"]
[SourceQuality "1"]
[TimeControl "5400+30"]

1. e4 {[%emt 0:00:00]} e6 {[%emt 0:00:00]} 2. d4 {[%emt 0:00:00]} d5 {[%emt 0:00:00]} 3. exd5 {[%emt 0:00:32]} exd5 {[%emt 0:00:00]} 4. Nf3 {[%emt 0:01:06]} Nf6 {[%emt 0:00:00]} 5. Bd3 {[%emt 0:00:44]} Bd6 {[%emt 0:01:13]} 6. O-O {[%emt 0:00:17]} O-O {[%emt 0:01:02]} 7. Bg5 {[%emt 0:01:21]} Bg4 {[%emt 0:01:37]} 8. Nbd2 {[%emt 0:00:28]} Nbd7 {[%emt 0:00:52]} 9. c3 {[%emt 0:00:58]} c6 {[%emt 0:00:52]} 10. Qc2 {[%emt 0:02:16]} Qc7 {[%emt 0:00:20]} 11. Bh4 {[%emt 0:07:27]} Bh5 {[%emt 0:03:04]} 12. Bg3 {[%emt 0:01:05]} Bg6 {[%emt 0:10:57]} 13. Nh4 {[%emt 0:06:33]} Rfe8 {[%emt 0:16:22]} 14. Nxg6 {[%emt 0:04:16]} hxg6 {[%emt 0:00:10]} 15. Rfe1 {[%emt 0:00:12]} Rxe1+ {[%emt 0:05:44]} 16. Rxe1 {[%emt 0:00:21]} Re8 {[%emt 0:00:07]} 17. Rxe8+ {[%emt 0:02:51]} Nxe8 {[%emt 0:00:05]} 18. Nf3 {[%emt 0:00:21]} Bxg3 {[%emt 0:05:48]} 19. hxg3 {[%emt 0:00:09]} Nd6 {[%emt 0:00:11]} 20. Qe2 {[%emt 0:00:16]} Qd8 {[%emt 0:04:32]} 21. Ne5 {[%emt 0:08:12]} Qe8 {[%emt 0:07:45]} 22. f3 {[%emt 0:05:18]} Nf8 {[%emt 0:05:39]} 23. Kf2 {[%emt 0:00:40]} Qe7 {[%emt 0:03:41]} 24. b4 {[%emt 0:02:32]} Qc7 {[%emt 0:04:26]} 25. Qe3 {[%emt 0:07:12]} a5 {[%emt 0:04:30]} 26. a3 {[%emt 0:00:05]} Qd8 {[%emt 0:02:05]} 27. Kg1 {[%emt 0:15:55]} axb4 {[%emt 0:01:37]} 28. axb4 {[%emt 0:00:05]} Qe7 {[%emt 0:01:28]} 29. Ng4 {[%emt 0:05:50]} Qxe3+ {[%emt 0:06:31]} 30. Nxe3 {[%emt 0:00:06]} Nd7 {[%emt 0:01:30]} 31. b5 {[%emt 0:05:44]} Kf8 {[%emt 0:01:16]} 32. Kf2 {[%emt 0:02:24]} Ke7 {[%emt 0:01:13]} 33. bxc6 {[%emt 0:02:03]} bxc6 {[%emt 0:00:07]} 34. Ke2 {[%emt 0:01:34]} Ke6 {[%emt 0:02:18]} 35. Nc2 {[%emt 0:02:12]} Nf5 {[%emt 0:02:29]} 36. g4 {[%emt 0:04:41]} Ne7 {[%emt 0:00:06]} 37. g5 {[%emt 0:00:54]} Kd6 {[%emt 0:01:38]} 38. g4 {[%emt 0:01:40]} Nf8 {[%emt 0:01:45]} 39. f4 {[%emt 0:02:15]} Ne6 {[%emt 0:00:12]} 40. Ke3 {[%emt 0:00:19]} Nc8 {[%emt 0:01:03]} 41. Ne1 {[%emt 0:02:12]} Nb6 {[%emt 0:01:24]} 42. Nf3 {[%emt 0:00:22]} Nd7 {[%emt 0:00:25]} 43. Ba6 {[%emt 0:03:18]} Nc7 {[%emt 0:02:34]} 44. Be2 {[%emt 0:01:16]} Ke7 {[%emt 0:01:02]} 45. Bd3 {[%emt 0:01:02]} Kd6 {[%emt 0:00:42]} 46. Ne5 {[%emt 0:01:04]} Nxe5 {[%emt 0:00:47]} 47. dxe5+ {[%emt 0:00:04]} Ke7 {[%emt 0:01:23]} 48. f5 {[%emt 0:00:19]} gxf5 {[%emt 0:00:03]} 49. gxf5 {[%emt 0:00:27]} g6 {[%emt 0:00:13]} 50. fxg6 {[%emt 0:02:39]} 1/2-1/2

[Event "Guimaraes Open 2019"]
[Site "Guimaraes"]
[Date "2019.08.29"]
[Round "2.5"]
[White "Lopez Mulet, Inigo"]
[Black "Nieves Cabanes, Javier"]
[Result "1/2-1/2"]
[ECO "E04"]
[WhiteElo "2397"]
[BlackElo "2211"]
[Annotator "NA"]
[PlyCount "75"]
[EventDate "2019.08.28"]
[EventType "swiss"]
[EventCountry "POR"]
[SourceTitle "playchess.com"]
[Source "ChessBase"]
[SourceQuality "1"]
[TimeControl "5400+30"]

1. d4 {[%emt 0:00:00]} Nf6 {[%emt 0:00:00]} 2. c4 {[%emt 0:00:00]} e6 {[%emt 0:00:00]} 3. g3 {[%emt 0:00:00]} d5 {[%emt 0:00:39]} 4. Nf3 {[%emt 0:00:04]} dxc4 {[%emt 0:01:03]} 5. Bg2 {[%emt 0:00:25]} Bd7 {[%emt 0:00:23]} 6. Ne5 {[%emt 0:01:16]} Bc6 {[%emt 0:00:22]} 7. Nxc6 {[%emt 0:00:13]} Nxc6 {[%emt 0:00:21]} 8. O-O {[%emt 0:00:26]} Qd7 {[%emt 0:01:13]} 9. e3 {[%emt 0:04:47]} O-O-O {[%emt 0:00:41]} 10. Qa4 {[%emt 0:03:38]} Nd5 {[%emt 0:00:15]} 11. Qxc4 {[%emt 0:00:29]} h5 {[%emt 0:00:17]} 12. Nc3 {[%emt 0:03:27]} h4 {[%emt 0:01:06]} 13. Bd2 {[%emt 0:00:57]} f5 {[%emt 0:01:42]} 14. b4 {[%emt 0:13:18]} hxg3 {[%emt 0:06:05]} 15. hxg3 {[%emt 0:00:09]} g5 {[%emt 0:00:44]} 16. b5 {[%emt 0:01:52]} Qh7 {[%emt 0:10:38]} 17. Rfc1 {[%emt 0:00:15]} Nce7 {[%emt 0:00:08]} 18. Na4 {[%emt 0:01:52]} f4 {[%emt 0:09:13]} 19. e4 {[%emt 0:08:12]} fxg3 {[%emt 0:01:47]} 20. exd5 {[%emt 0:00:08]} gxf2+ {[%emt 0:00:16]} 21. Kf1 {[%emt 0:00:37]} Nxd5 {[%emt 0:00:29]} 22. Qe2 {[%emt 0:07:43]} Qh2 {[%emt 0:06:36]} 23. Qxe6+ {[%emt 0:22:41]} Kb8 {[%emt 0:00:42]} 24. Bxd5 {[%emt 0:00:29]} Bg7 {[%emt 0:01:59]} 25. Nc5 {[%emt 0:07:40]} Bxd4 {[%emt 0:12:36]} 26. Nd7+ {[%emt 0:08:34]} Rxd7 {[%emt 0:00:41]} 27. Qxd7 {[%emt 0:00:06]} Qg1+ {[%emt 0:00:52]} 28. Ke2 {[%emt 0:00:34]} f1=Q+ {[%emt 0:00:32]} 29. Rxf1 {[%emt 0:00:07]} Rh2+ {[%emt 0:00:22]} 30. Kd3 {[%emt 0:01:24]} Rxd2+ {[%emt 0:01:08]} 31. Kc4 {[%emt 0:05:22]} Rc2+ {[%emt 0:00:49]} 32. Kb3 {[%emt 0:01:12]} Rb2+ {[%emt 0:03:52]} 33. Ka3 {[%emt 0:06:30]} Qe3+ {[%emt 0:04:47]} 34. Bb3 {[%emt 0:00:19]} Rxb3+ {[%emt 0:00:39]} 35. axb3 {[%emt 0:00:16]} Bc5+ {[%emt 0:00:10]} 36. Kb2 {[%emt 0:01:01]} Bd4+ {[%emt 0:00:30]} 37. Ka3 {[%emt 0:01:10]} Bc5+ {[%emt 0:00:08]} 38. Kb2 {[%emt 0:00:27]} 1/2-1/2

[Event "Guimaraes Open 2019"]
[Site "Guimaraes"]
[Date "2019.08.29"]
[Round "2.6"]
[White "De Prado Rodriguez, Oscar Bruno"]
[Black "Schou, Bjorn A"]
[Result "0-1"]
[ECO "A43"]
[WhiteElo "2155"]
[BlackElo "1257"]
[Annotator "NA"]
[PlyCount "118"]
[EventDate "2019.08.28"]
[EventType "swiss"]
[EventCountry "POR"]
[SourceTitle "playchess.com"]
[Source "ChessBase"]
[SourceQuality "1"]
[TimeControl "5400+30"]

1. d4 {[%emt 0:02:48]} c5 {[%emt 0:00:00]} 2. c3 {[%emt 0:00:29]} e6 {[%emt 0:00:46]} 3. Bf4 {[%emt 0:00:41]} Nf6 {[%emt 0:01:14]} 4. e3 {[%emt 0:00:11]} Nc6 {[%emt 0:01:05]} 5. Nd2 {[%emt 0:00:27]} Be7 {[%emt 0:01:08]} 6. Bd3 {[%emt 0:00:09]} b6 {[%emt 0:02:51]} 7. h3 {[%emt 0:00:47]} Bb7 {[%emt 0:03:20]} 8. Ngf3 {[%emt 0:00:18]} d5 {[%emt 0:03:11]} 9. O-O {[%emt 0:00:19]} O-O {[%emt 0:01:08]} 10. Qe2 {[%emt 0:03:28]} h6 {[%emt 0:02:55]} 11. Rad1 {[%emt 0:05:59]} Bd6 {[%emt 0:03:03]} 12. Bxd6 {[%emt 0:14:05]} Qxd6 {[%emt 0:00:45]} 13. e4 {[%emt 0:00:52]} dxe4 {[%emt 0:10:28]} 14. Nxe4 {[%emt 0:01:52]} Nxe4 {[%emt 0:03:23]} 15. Qxe4 {[%emt 0:05:38]} g6 {[%emt 0:00:04]} 16. Qe3 {[%emt 0:08:07]} Kg7 {[%emt 0:01:55]} 17. dxc5 {[%emt 0:01:38]} Qxc5 {[%emt 0:00:28]} 18. Qxc5 {[%emt 0:00:34]} bxc5 {[%emt 0:00:03]} 19. Be4 {[%emt 0:00:11]} Rfd8 {[%emt 0:01:41]} 20. Rfe1 {[%emt 0:02:59]} Rab8 {[%emt 0:04:04]} 21. b3 {[%emt 0:00:48]} Kf6 {[%emt 0:15:38]} 22. Nd2 {[%emt 0:04:09]} Ke7 {[%emt 0:01:12]} 23. Bf3 {[%emt 0:10:05]} Rbc8 {[%emt 0:12:31]} 24. Nc4 {[%emt 0:08:43]} h5 {[%emt 0:04:20]} 25. Ne3 {[%emt 0:03:08]} Rxd1 {[%emt 0:01:40]} 26. Rxd1 {[%emt 0:00:09]} Ba6 {[%emt 0:00:19]} 27. Bxc6 {[%emt 0:03:30]} Rxc6 {[%emt 0:00:04]} 28. c4 {[%emt 0:00:10]} Bb7 {[%emt 0:01:42]} 29. f3 {[%emt 0:01:41]} g5 {[%emt 0:01:41]} 30. Kf2 {[%emt 0:00:07]} Rc8 {[%emt 0:00:32]} 31. Rd2 {[%emt 0:00:32]} f5 {[%emt 0:01:22]} 32. Re2 {[%emt 0:01:32]} Kf6 {[%emt 0:00:36]} 33. Rd2 {[%emt 0:00:06]} f4 {[%emt 0:00:34]} 34. Nd1 {[%emt 0:00:18]} Bc6 {[%emt 0:02:54]} 35. Nc3 {[%emt 0:00:40]} a6 {[%emt 0:02:09]} 36. Ne2 {[%emt 0:02:53]} Kf5 {[%emt 0:00:54]} 37. Nc1 {[%emt 0:03:32]} e5 {[%emt 0:01:48]} 38. Ne2 {[%emt 0:06:48]} g4 {[%emt 0:04:19]} 39. hxg4+ {[%emt 0:00:32]} hxg4 {[%emt 0:00:02]} 40. fxg4+ {[%emt 0:03:09]} Kxg4 {[%emt 0:00:14]} 41. Rd6 {[%emt 0:00:16]} Kf5 {[%emt 0:04:13]} 42. Rh6 {[%emt 0:02:01]} Kg5 {[%emt 0:03:14]} 43. Re6 {[%emt 0:00:27]} Kf5 {[%emt 0:00:02]} 44. Rh6 {[%emt 0:00:18]} Bb7 {[%emt 0:01:20]} 45. Rh7 {[%emt 0:01:21]} Ba8 {[%emt 0:00:08]} 46. Rg7 {[%emt 0:02:25]} Rd8 {[%emt 0:00:25]} 47. Rf7+ {[%emt 0:00:33]} Ke6 {[%emt 0:02:18]} 48. Ra7 {[%emt 0:00:06]} Be4 {[%emt 0:01:13]} 49. Rxa6+ {[%emt 0:01:10]} Kf5 {[%emt 0:00:02]} 50. Ra5 {[%emt 0:01:35]} Rd2 {[%emt 0:00:19]} 51. Ke1 {[%emt 0:00:28]} Rb2 {[%emt 0:00:05]} 52. Rxc5 {[%emt 0:00:13]} Bxg2 {[%emt 0:00:32]} 53. Nd4+ {[%emt 0:00:44]} Ke4 {[%emt 0:01:01]} 54. Nc6 {[%emt 0:00:25]} f3 {[%emt 0:00:18]} 55. Rxe5+ {[%emt 0:00:51]} Kf4 {[%emt 0:00:03]} 56. Kd1 f2 {[%emt 0:00:39]} 57. Kc1 {[%emt 0:00:38]} Rxa2 {[%emt 0:00:55]} 58. Kb1 {[%emt 0:00:14]} Rd2 {[%emt 0:00:52]} 59. Kc1 {[%emt 0:00:10]} Rd6 {[%emt 0:00:26]} 0-1